bitfinex/quotes_ETHUSD_20241120
["timestamp","ask_amount","ask_price","bid_price","bid_amount"]
[1732142655165,3.25628,3071.0,3070.5,3.89403866]
[1732142658348,3.25601,3071.3,3070.9,0.7848]
[1732142658549,3.25555,3071.7,3071.0,0.7848]
[1732142658881,0.325555,3071.6,3071.3,4.04068]
[1732142659174,15.47069,3071.9,3071.3,4.04068]
[1732142659377,12.21531,3071.9,3071.3,4.04068]
[1732142659695,1.221531,3071.8,3071.3,4.04068]
[1732142660296,3.25531,3071.9,3071.3,4.04068]
[1732142669452,3.25531,3071.9,3071.4,3.25579]
[1732142671695,3.0,3072.0,3071.5,3.25571]
[1732142672015,3.951037,3072.0,3071.6,0.7818]
[1732142672565,7.206267,3072.0,3071.6,0.7818]
[1732142677367,3.951037,3072.0,3071.6,0.7818]
[1732142678369,7.206257,3072.0,3071.6,0.7818]
[1732142678710,1.0461427,3071.9,3071.6,0.7818]
[1732142682304,1.0461427,3071.9,3071.6,4.03735]
[1732142682500,3.0,3072.1,3071.7,3.2555]
[1732142685147,3.25475,3072.5,3072.0,4.03852]
[1732142686315,0.325475,3072.4,3072.0,4.03852]
[1732142693295,3.580255,3072.4,3072.0,0.7834]
[1732142699794,0.325475,3072.4,3072.1,3.25508]
[1732142699996,3.25462,3072.6,3072.1,3.25508]
[1732142700316,4.08579,3072.7,3072.2,3.25494]
[1732142700592,4.08579,3072.7,3072.1,3.25502]
[1732142700593,3.25458,3072.6,3072.1,3.25503]
[1732142700815,3.25459,3072.6,3072.0,0.7834]
[1732142701001,3.25459,3072.6,3072.0,4.03854]
[1732142701202,0.325459,3072.5,3072.0,4.03854]
[1732142702006,0.325459,3072.5,3072.1,3.25507]
[1732142703068,3.87984,3072.8,3072.2,3.25495]
[1732142703322,3.87984,3072.8,3072.3,3.25488]
[1732142703602,3.87984,3072.8,3072.4,0.8307]
[1732142707097,0.62543,3072.8,3072.4,4.08539]
[1732142707308,0.62543,3072.8,3072.5,3.25461]
[1732142709295,0.62543,3072.8,3072.4,0.8307]
[1732142710432,0.62543,3072.8,3072.4,4.08545]
[1732142712358,3.25425,3072.9,3072.4,4.08545]
[1732142719165,3.25425,3072.9,3072.4,7.34018]
[1732142719643,3.25425,3072.9,3072.4,4.08543]
[1732142720737,3.25425,3072.9,3072.5,3.25465]
[1732142721331,3.25425,3072.9,3072.4,7.34014]
[1732142723078,3.25425,3072.9,3072.4,4.08541]
[1732142723648,0.7571,3073.2,3072.4,4.08541]
[1732142723845,0.7571,3073.1,3072.1,0.8218]
[1732142724075,0.7571,3072.3,3071.9,4.0771]
[1732142724245,4.01205,3072.3,3071.8,3.25533]
[1732142725690,3.25504,3072.2,3071.6,7.33297]
[1732142725985,3.25504,3072.2,3071.6,8.14297457]
[1732142726287,3.25504,3072.2,3071.5,0.76707573]
[1732142726288,0.7571,3071.6,3071.0,2.1942719]
[1732142726493,0.7571,3071.6,3070.6,1.36092147]
[1732142726494,1.158368,3071.6,3070.4,0.85435628]
[1732142726645,3.25615,3071.2,3070.4,4.07863]
[1732142726854,3.25647,3070.9,3070.2,3.25706]
[1732142727150,3.25681,3070.5,3070.0,3.25732]
[1732142727583,3.25681,3070.5,3070.0,3.62967475]
[1732142727783,3.25681,3070.5,3070.1,1.3724719]
[1732142727987,3.2566,3070.7,3070.1,1.3724719]
[1732142728183,3.25671,3070.6,3070.1,1.3724719]
[1732142729689,3.25671,3070.6,3070.0,3.25732]
[1732142731096,3.25687,3070.5,3069.9,4.6299019]
[1732142731438,3.25687,3070.5,3069.9,5.17508009]
[1732142731944,4.08597,3070.5,3069.9,4.6299019]
[1732142732796,3.25687,3070.5,3069.9,4.6299019]
[1732142732997,3.25687,3070.5,3070.1,1.3724719]
[1732142734441,3.25694,3070.4,3069.9,4.6299019]
[1732142734801,3.25701,3070.3,3069.8,0.8218]
[1732142735111,3.25701,3070.3,3070.0,1.3724719]
[1732142735314,3.25701,3070.3,3069.8,2.1942719]
[1732142735511,3.25701,3070.3,3069.8,0.8218]
[1732142735698,3.25701,3070.3,3069.8,2.1942719]
[1732142739736,3.25687,3070.5,3069.8,2.1942719]
[1732142739921,3.25687,3070.5,3070.0,1.3724719]
[1732142739922,0.325687,3070.4,3070.0,1.3724719]
[1732142740249,3.25687,3070.5,3070.0,4.6297819]
[1732142740599,4.08571,3070.7,3070.1,3.25713]
[1732142740797,7.34239,3070.7,3070.1,3.25713]
[1732142741035,4.08571,3070.7,3070.1,3.25713]
[1732142741626,3.2567,3070.6,3070.1,3.25713]
[1732142743207,4.08571,3070.7,3070.0,1.3724719]
[1732142743407,3.25681,3070.5,3070.0,4.6297719]
[1732142744307,3.25681,3070.5,3070.0,3.2573]
[1732142745609,3.25681,3070.5,3069.8,4.07928]
[1732142745610,3.25707,3070.3,3069.8,5.4517519]
[1732142745955,3.25707,3070.3,3069.8,0.8218]
[1732142746159,3.2573,3070.1,3069.6,4.6301519]
[1732142747214,4.01666,3070.2,3069.6,4.6301519]
[1732142747415,4.01666,3070.2,3069.6,7.8878319]
[1732142747650,3.25724,3070.1,3069.6,4.6301519]
[1732142748370,3.25724,3070.1,3069.6,3.25768]
[1732142751084,0.7802,3069.7,3069.2,3.25814]
[1732142751379,4.03785,3069.7,3069.2,4.6306119]
[1732142751748,0.7802,3069.7,3069.2,4.6306119]
[1732142751932,0.7802,3069.7,3069.3,3.25806]
[1732142752326,0.7802,3069.7,3069.2,4.6306119]
[1732142752327,4.03785,3069.7,3069.2,4.6306119]
[1732142752628,4.03785,3069.7,3069.2,1.3724719]
[1732142752977,3.25776,3069.6,3069.2,1.3724719]
[1732142753842,4.03785,3069.7,3069.2,4.6306119]
[1732142754352,3.25775,3069.6,3069.2,1.3724719]
[1732142754886,0.7802,3069.7,3069.2,4.6306319]
[1732142755371,4.03787,3069.7,3069.2,4.6306319]
[1732142756876,4.04142,3069.9,3069.3,3.25807]
[1732142757607,0.7839,3069.9,3069.3,3.25807]
[1732142757767,3.25754,3069.8,3069.3,3.25807]
[1732142758203,3.25754,3069.8,3069.4,0.7975]
[1732142758505,6.5148,3070.0,3069.4,4.05545]
[1732142758864,3.25739,3070.0,3069.4,4.05545]
[1732142759906,6.51481,3070.0,3069.4,4.0554]
[1732142760472,3.25739,3070.0,3069.4,7.31328]
[1732142760670,3.25739,3070.0,3069.4,4.05538]
[1732142760869,3.25776,3069.6,3069.0,4.06138]
[1732142761381,3.25791,3069.5,3069.0,4.06138]
[1732142763224,3.25791,3069.5,3069.0,3.25828]
[1732142765522,3.909469,3069.5,3069.0,3.25828]
[1732142766621,3.909469,3069.5,3068.8,4.06168]
[1732142766828,3.25812,3069.3,3068.8,4.06168]
[1732142767031,3.25812,3069.3,3068.8,3.25858]
[1732142767324,7.3145289,3069.3,3068.8,3.25858]
[1732142767518,6.51625,3069.3,3068.8,3.25858]
[1732142767708,3.25812,3069.3,3068.8,3.25858]
[1732142768224,0.8152,3069.4,3068.9,3.25847]
[1732142770998,4.07319,3069.4,3068.9,3.25847]
[1732142772738,4.07319,3069.4,3068.8,3.25858]
[1732142772921,4.07319,3069.4,3068.8,6.5171]
[1732142773236,4.07319,3069.4,3068.8,3.25852]
[1732142773556,4.07319,3069.4,3068.8,6.51706]
[1732142774334,4.07319,3069.4,3068.8,3.25852]
[1732142774634,4.07319,3069.4,3068.9,3.25849]
[1732142776011,3.2581,3069.3,3068.7,4.6310819]
[1732142776194,3.2581,3069.3,3068.7,5.50256409]
[1732142776413,3.2581,3069.3,3068.7,2.24395409]
[1732142776613,3.2581,3069.3,3068.8,3.25857]
[1732142777112,3.2581,3069.3,3068.8,6.51714]
[1732142777335,4.07316,3069.4,3068.9,3.25847]
[1732142777561,4.07316,3069.4,3068.9,4.6309419]
[1732142777746,3.25796,3069.4,3068.9,5.50704131]
[1732142777927,0.7521,3070.4,3069.5,0.7759]
[1732142778250,3.25665,3070.7,3070.2,1.3724719]
[1732142779211,6.5129,3070.9,3070.2,4.6295119]
[1732142779426,0.325643,3070.8,3070.3,3.25698]
[1732142779952,3.582143,3070.8,3070.3,3.25698]
[1732142781227,3.25658,3070.7,3070.1,3.25714]
[1732142781440,6.51325,3070.7,3070.1,3.25714]
[1732142781635,3.25658,3070.7,3070.2,3.25705]
[1732142781840,4.00832,3071.1,3070.4,1.3724719]
[1732142782143,0.31473098,3071.4,3070.8,0.7759]
[1732142782144,3.25599,3071.3,3070.8,0.7759]
[1732142782954,0.7521,3071.4,3070.8,0.7759]
[1732142783115,0.7521,3071.4,3070.9,3.25634]
[1732142783551,0.7521,3071.4,3070.8,0.7759]
[1732142783941,3.25595,3071.3,3070.8,4.03231]
[1732142786969,3.25579,3071.5,3070.8,4.03231]
[1732142787127,3.25579,3071.5,3070.8,5.4047819]
[1732142787329,3.656539,3071.5,3070.8,5.4047819]
[1732142788170,0.400749,3071.5,3070.9,3.25637]
[1732142788375,3.2557,3071.6,3071.0,3.25625]
[1732142790091,3.25574,3071.5,3071.0,3.25625]
[1732142790246,3.982042,3071.5,3071.0,3.25625]
[1732142793365,7.237852,3071.5,3071.0,3.25625]
[1732142793989,3.982042,3071.5,3071.0,3.25625]
[1732142794427,7.237862,3071.5,3071.0,3.25625]
[1732142795682,3.25584,3071.4,3070.8,4.03227]
[1732142796269,3.25584,3071.4,3070.9,3.25635]
[1732142801948,3.2561,3071.2,3070.5,6.51345]
[1732142802154,3.25647,3070.9,3070.4,0.7893]
[1732142802374,3.25643,3070.9,3070.4,4.04619]
[1732142803953,3.2569,3070.4,3069.9,0.7767]
[1732142804158,3.25727,3070.1,3069.9,0.7767]
[1732142804358,3.25727,3070.1,3069.6,0.7767]
[1732142804359,6.51458,3070.1,3069.6,0.7767]
[1732142804558,3.25727,3070.1,3069.6,0.7767]
[1732142805153,6.51459,3070.1,3069.6,0.7767]
[1732142805560,3.25744,3069.9,3069.6,0.7767]
[1732142805860,3.25744,3069.9,3069.4,3.25796]
[1732142806089,3.25764,3069.8,3069.3,0.7767]
[1732142806299,3.25768,3069.7,3069.3,0.7767]
[1732142806500,3.25768,3069.7,3069.2,1.3724719]
[1732142806800,3.25768,3069.7,3069.2,4.6305919]
[1732142807166,3.25768,3069.7,3069.2,1.3724719]
[1732142807408,3.25768,3069.7,3069.2,1.89948394]
[1732142815422,3.25768,3069.7,3069.0,0.7767]
[1732142815584,3.25792,3069.5,3069.0,0.7767]
[1732142815785,6.51584,3069.5,3069.0,0.7767]
[1732142815985,3.25792,3069.5,3069.0,0.7767]
[1732142816303,6.51588,3069.5,3069.0,2.1491719]
[1732142816823,6.51586,3069.5,3069.0,2.1491719]
[1732142817112,3.25805,3069.4,3069.0,2.1491719]
[1732142820220,3.25704,3070.3,3068.3,6.2591]
[1732142820221,3.25785,3069.6,3069.3,2.1320719]
[1732142820390,3.25757,3069.8,3069.3,2.1320719]
[1732142820391,3.25764,3069.7,3069.4,0.21320719]
[1732142820591,3.25764,3069.7,3069.3,2.1320719]
[1732142821320,3.25723,3070.1,3069.6,3.25773]
[1732142821822,9.7712,3070.5,3069.7,2.1320719]
[1732142821823,0.8112,3070.5,3069.7,2.1320719]
[1732142822011,0.8112,3070.5,3069.9,1.3724719]
[1732142822012,3.25702,3070.3,3069.9,1.3724719]
[1732142822629,3.25702,3070.3,3069.8,3.25749]
[1732142823828,3.25702,3070.3,3069.9,1.3724719]
[1732142823984,3.2568,3070.5,3069.9,4.6298819]
[1732142824319,3.2568,3070.5,3070.0,0.7596]
[1732142825227,3.2569,3070.4,3070.0,0.7596]
[1732142826995,3.25664,3070.7,3070.0,0.7596]
[1732142827200,3.25675,3070.6,3070.0,4.01686]
[1732142827530,3.25671,3070.6,3070.1,3.25716]
[1732142827687,3.25664,3070.7,3070.2,3.2571]
[1732142827884,3.25651,3070.8,3070.3,4.0509]
[1732142830300,3.25651,3070.8,3070.3,0.7939]
[1732142830822,3.2566,3070.7,3070.3,0.7939]
[1732142832000,6.51282,3070.9,3070.3,4.05089]
[1732142832227,3.25648,3070.8,3070.3,4.05089]
[1732142839208,3.25648,3070.8,3070.3,7.30783]
[1732142839446,3.25648,3070.8,3070.3,4.05083]
[1732142839607,3.2564,3070.9,3070.4,3.2569]
[1732142844468,3.2564,3070.9,3070.4,3.25684]
[1732142849434,3.2564,3070.9,3070.4,6.51368]
[1732142849832,3.2564,3070.9,3070.4,3.25684]
[1732142855641,3.2565,3070.8,3070.4,3.25684]
[1732142859271,3.2565,3070.8,3070.3,4.0509]
[1732142860956,4.0811,3070.8,3070.3,4.0509]
[1732142861445,3.2565,3070.8,3070.3,4.0509]
[1732142865389,6.51307,3070.8,3070.3,4.0509]
[1732142865681,3.2565,3070.8,3070.3,4.0509]
[1732142868178,6.51304,3070.8,3070.3,4.0509]
[1732142868680,3.2565,3070.8,3070.3,4.0509]
[1732142869975,6.51306,3070.8,3070.3,4.0509]
[1732142871884,3.25665,3070.7,3070.3,0.7939]
[1732142872811,3.25665,3070.7,3069.5,1.36092147]
[1732142872812,0.7738,3070.3,3069.5,1.36092147]
[1732142873022,3.25778,3069.6,3069.3,0.8029]
[1732142873161,3.25796,3069.4,3069.3,0.8029]
[1732142873363,3.25813,3069.3,3068.9,0.8029]
[1732142874380,3.25818,3069.2,3068.9,0.8029]
[1732142877019,3.25813,3069.3,3068.9,0.8029]
[1732142877020,3.25839,3069.0,3068.9,0.8029]
[1732142877189,3.25861,3068.8,3068.6,0.7808]
[1732142877729,3.2587,3068.7,3068.1,2.1907719]
[1732142878026,3.25887,3068.6,3068.1,2.1907719]
[1732142882022,0.7948,3068.8,3068.1,2.1907719]
[1732142882319,0.7948,3068.8,3068.2,0.60941234]
[1732142882624,3.25871,3068.7,3068.2,3.86859234]
[1732142884920,3.25871,3068.7,3068.3,1.3724719]
[1732142885125,0.7948,3068.8,3068.3,1.3724719]
[1732142885430,3.25855,3068.9,3068.3,1.3724719]
[1732142885431,3.25857,3068.9,3068.4,0.52410642]
[1732142885590,3.25839,3069.0,3068.3,4.6315219]
[1732142885784,3.25839,3069.0,3068.4,0.46315219]
[1732142886499,3.25862,3068.8,3068.4,0.46315219]
[1732142887110,3.25839,3069.0,3068.4,3.72215219]
[1732142887313,6.51687,3069.0,3068.4,3.72215219]
[1732142887819,3.25839,3069.0,3068.4,3.72215219]
[1732142888011,3.25849,3068.9,3068.4,3.72215219]
[1732142889604,3.25849,3068.9,3068.5,0.8026]
[1732142890028,0.8268,3069.1,3068.5,0.8026]
[1732142890238,6.51693,3069.0,3068.5,0.8026]
[1732142890543,3.25846,3069.0,3068.5,0.8026]
[1732142891637,3.25846,3069.0,3068.5,4.06151]
[1732142893548,0.7881,3068.9,3068.5,0.8026]
[1732142893705,4.0466,3068.9,3068.4,3.25896]
[1732142894205,3.25872,3068.7,3068.3,0.8026]
[1732142894405,3.25882,3068.6,3068.3,0.8026]
[1732142895229,6.51772,3068.6,3068.3,0.8026]
[1732142895397,3.25882,3068.6,3068.3,0.8026]
[1732142897259,6.5177,3068.6,3068.3,0.8026]
[1732142897758,3.25865,3068.8,3068.3,0.8026]
[1732142898123,6.51733,3068.8,3068.3,0.8026]
[1732142898324,3.25865,3068.8,3068.3,0.8026]
[1732142898525,3.25874,3068.7,3068.3,0.8026]
[1732142899466,3.25865,3068.8,3068.3,4.06173]
[1732142902265,3.2586,3068.8,3068.3,4.06173]
[1732142902973,6.5173,3068.8,3068.3,4.06173]
[1732142903264,6.51727,3068.8,3068.3,4.06173]
[1732142903469,3.25871,3068.7,3068.3,4.06173]
[1732142904178,0.7699,3069.1,3068.3,4.06173]
[1732142904384,3.25866,3068.8,3068.3,4.06173]
[1732142904543,3.2586,3068.9,3068.3,8.0508337]
[1732142904747,3.2586,3068.9,3068.3,7.32076]
[1732142905463,3.2586,3068.9,3068.3,4.06163]
[1732142905671,6.5172,3068.9,3068.3,4.06163]
[1732142909641,3.2586,3068.9,3068.3,4.06163]
[1732142909842,3.25862,3068.8,3068.3,4.06163]
[1732142910244,3.25862,3068.8,3068.3,7.32069]
[1732142910885,3.25862,3068.8,3068.3,4.06163]
[1732142913068,3.2586,3068.9,3068.3,4.06163]
[1732142913390,3.2586,3068.9,3068.3,7.32068]
[1732142914587,3.2586,3068.9,3068.4,3.25901]
[1732142916371,3.25857,3068.9,3068.4,3.25901]
[1732142916790,3.25857,3068.9,3068.5,0.7823]
[1732142917398,3.25857,3068.9,3068.5,4.04121]
[1732142918059,3.25839,3069.0,3068.5,4.04121]
[1732142919047,3.25828,3069.1,3068.6,3.25879]
[1732142920212,3.66810909,3069.2,3068.5,0.7823]
[1732142920373,3.66810909,3069.2,3068.4,1.88062799]
[1732142920374,3.25818,3069.2,3068.7,3.2587]
[1732142923060,6.51644,3069.2,3068.7,3.2587]
[1732142923505,3.25818,3069.2,3068.7,3.2587]
[1732142923706,3.25828,3069.1,3068.7,3.2587]
[1732142924296,3.25828,3069.1,3068.6,0.7823]
[1732142925869,3.25828,3069.1,3068.7,0.7735]
[1732142926921,3.25828,3069.1,3068.7,4.0322]
[1732142927077,3.25828,3069.1,3068.7,0.7735]
[1732142928223,4.5226316,3069.5,3068.7,0.7735]
[1732142928402,3.25803,3069.4,3069.0,0.7932]
[1732142928719,3.25775,3069.6,3069.0,4.05153]
[1732142928917,0.651547,3069.5,3069.0,4.05153]
[1732142929117,3.25775,3069.6,3069.0,4.05153]
[1732142929426,3.25775,3069.6,3069.1,3.25825]
[1732142929626,3.2576,3069.8,3069.2,4.0513]
[1732142929778,3.25754,3069.8,3069.2,4.0513]
[1732142930825,3.25765,3069.7,3069.2,4.0513]
[1732142932023,0.4382016,3069.9,3069.3,0.7932]
[1732142932433,3.6956316,3069.9,3069.5,0.7932]
[1732142935350,3.25733,3070.0,3069.6,0.7932]
[1732142935507,6.51472,3070.0,3069.6,0.7932]
[1732142936838,3.25743,3069.9,3069.6,0.7932]
[1732142938966,3.25733,3070.0,3069.6,0.7932]
[1732142939172,3.25743,3069.9,3069.6,0.7932]
[1732142940571,3.25733,3070.0,3069.6,0.7932]
[1732142940731,3.25754,3069.8,3069.6,0.7932]
[1732142942366,6.51478,3070.0,3069.6,0.7932]
[1732142942529,3.25745,3069.9,3069.6,0.7932]
[1732142943556,6.51452,3070.1,3069.6,0.7932]
[1732142943740,3.25722,3070.1,3069.6,0.7932]
[1732142943945,3.2574,3070.0,3069.6,0.7932]
[1732142946585,3.25744,3069.9,3069.6,0.7932]
[1732142947082,3.25733,3070.0,3069.6,0.7932]
[1732142948236,6.51472,3070.0,3069.6,0.7932]
[1732142948635,3.25733,3070.0,3069.6,0.7932]
[1732142950631,0.811,3069.5,3068.3,1.37092147]
[1732142950859,3.25822,3069.2,3068.8,0.8178]
[1732142952539,3.25845,3069.0,3068.8,0.8178]
[1732142953060,6.51692,3069.0,3068.8,0.8178]
[1732142953262,3.25845,3069.0,3068.8,0.8178]
[1732142953466,6.51692,3069.0,3068.8,0.8178]
[1732142953660,3.25849,3068.9,3068.8,0.8178]
[1732142954848,3.25824,3069.2,3068.8,0.8178]
[1732142955039,3.2584,3069.0,3068.8,0.8178]
[1732142957151,6.51651,3069.2,3068.8,2.1902719]
[1732142957372,3.25824,3069.2,3068.8,2.73517809]
[1732142957939,3.25824,3069.2,3068.8,1.91737809]
[1732142958850,3.25824,3069.2,3068.9,0.7827]
[1732142959049,3.25824,3069.2,3069.0,0.27000781]
[1732142960348,3.25802,3069.4,3069.0,0.27000781]
[1732142960913,6.51607,3069.4,3069.0,0.27000781]
[1732142961212,3.25802,3069.4,3069.0,0.27000781]
[1732142961398,6.51608,3069.4,3069.0,0.27000781]
[1732142961915,3.25802,3069.4,3069.0,0.27000781]
[1732142962812,3.2579,3069.5,3069.0,0.27000781]
[1732142962985,3.25797,3069.4,3069.1,0.43111878]
[1732142963192,3.25781,3069.6,3069.1,0.43111878]
[1732142963392,3.25787,3069.5,3069.1,0.43111878]
[1732142963915,3.25781,3069.6,3069.1,0.43111878]
[1732142964205,3.25786,3069.5,3069.1,0.43111878]
[1732142964697,3.25786,3069.5,3069.2,0.8167]
[1732142965387,3.25781,3069.6,3069.2,0.8167]
[1732142965610,3.25781,3069.6,3069.2,1.29430866]
[1732142969124,3.25765,3069.7,3069.2,4.55247866]
[1732142971587,7.31097,3070.0,3069.3,3.25801]
[1732142971879,4.05357,3070.0,3069.4,0.91829606]
[1732142972038,3.25737,3070.0,3069.4,4.17623606]
[1732142972187,3.25737,3070.0,3069.5,0.8149]
[1732142972386,6.51476,3070.0,3069.5,0.8149]
[1732142973317,3.25737,3070.0,3069.5,1.31401361]
[1732142973508,6.51477,3070.0,3069.5,1.31401361]
[1732142973714,3.25737,3070.0,3069.5,1.31401361]
[1732142974043,3.25737,3070.0,3069.5,4.57182361]
[1732142976510,3.6953516,3070.2,3069.6,3.25773]
[1732142976717,3.6953516,3070.2,3069.6,6.97257236]
[1732142976929,3.6953516,3070.2,3069.7,3.25764]
[1732142979249,3.6453516,3070.2,3069.7,3.25764]
[1732142979564,3.25715,3070.2,3069.8,0.69724824]
[1732142979870,3.25715,3070.2,3069.9,0.8149]
[1732142983493,3.2569,3070.4,3069.9,0.8149]
[1732142984081,3.25712,3070.2,3069.9,0.8149]
[1732142984805,3.25701,3070.3,3069.9,0.8149]
[1732142989564,3.25694,3070.4,3069.9,4.0723]
[1732142994320,3.25702,3070.3,3069.9,4.0723]
[1732142995716,3.25702,3070.3,3069.9,0.8149]
[1732142997721,3.25702,3070.3,3069.9,4.07232]
[1732142997878,3.25702,3070.3,3069.9,4.805311]
[1732142998981,3.25702,3070.3,3069.9,1.547891]
[1732142999624,3.25692,3070.4,3069.9,4.805321]
[1732143000096,3.2569,3070.4,3069.9,1.547891]
[1732143000607,3.25681,3070.5,3070.0,0.4805431]
[1732143000608,3.25702,3070.3,3070.0,0.4805431]
[1732143000814,3.25702,3070.3,3069.9,1.547891]
[1732143002590,3.25702,3070.3,3069.9,4.805311]
[1732143003136,3.2569,3070.4,3069.9,4.805321]
[1732143003309,3.2569,3070.4,3070.0,0.4805321]
[1732143005390,3.25671,3070.6,3070.1,0.824]
[1732143005597,3.25685,3070.5,3070.1,0.824]
[1732143006281,3.25655,3070.8,3070.1,0.824]
[1732143006490,3.2567,3070.6,3070.1,4.08114]
[1732143006695,3.2567,3070.6,3070.2,0.408114]
[1732143008597,3.25655,3070.8,3070.2,0.408114]
[1732143008780,3.25655,3070.8,3070.4,0.7818]
[1732143009187,3.2566,3070.7,3070.4,0.7818]
[1732143009467,3.25674,3070.6,3070.4,0.7818]
[1732143012448,3.25655,3070.8,3070.4,0.7818]
[1732143013324,3.25655,3070.8,3070.4,4.0387]
[1732143017429,6.94672493,3071.0,3070.4,4.0387]
[1732143017625,3.69035493,3071.0,3070.4,8.025111]
[1732143017838,3.25632,3071.0,3070.5,3.25678]
[1732143018028,3.25632,3071.0,3070.6,0.7625]
[1732143018739,3.25632,3071.0,3070.6,1.490111]
[1732143020966,3.25596,3071.3,3070.8,0.7965]
[1732143021175,3.25585,3071.4,3070.9,3.25636]
[1732143021337,3.25585,3071.4,3071.0,0.7965]
[1732143025171,3.25569,3071.6,3071.1,4.09154924]
[1732143025496,3.25569,3071.6,3071.1,4.05899]
[1732143028250,3.25569,3071.6,3071.1,7.31506]
[1732143028576,6.511,3071.8,3071.3,0.7917]
[1732143028775,6.511,3071.8,3071.4,0.404775]
[1732143029274,3.25556,3071.7,3071.4,0.404775]
[1732143032165,3.25529,3072.0,3071.5,0.8238]
[1732143032470,3.25532,3071.9,3071.5,1.08390469]
[1732143032793,3.25532,3071.9,3071.5,0.8238]
[1732143033587,3.25549,3071.8,3071.5,0.8238]
[1732143037385,3.25532,3071.9,3071.5,0.8238]
[1732143037877,3.25532,3071.9,3071.6,0.4484345]
[1732143040000,3.25521,3072.0,3071.6,0.4484345]
[1732143041729,3.25523,3072.0,3071.6,0.4484345]
[1732143042986,3.25532,3071.9,3071.6,0.4484345]
[1732143043282,3.25552,3071.7,3071.1,0.8175]
[1732143043486,3.25586,3071.4,3071.1,0.8175]
[1732143043687,3.25582,3071.5,3071.1,1.224884]
[1732143043997,3.25592,3071.4,3071.1,1.224884]
[1732143044203,3.25592,3071.4,3071.1,0.8175]
[1732143044989,3.25596,3071.3,3071.1,0.8175]
[1732143045296,3.25596,3071.3,3070.9,0.8278]
[1732143045483,3.25582,3071.5,3071.0,3.25626]
[1732143046013,3.25586,3071.4,3070.9,4.54699919]
[1732143046308,3.25586,3071.4,3071.0,0.78033792]
[1732143046721,3.25586,3071.4,3071.0,4.03659792]
[1732143047880,3.25579,3071.5,3071.0,4.03659792]
[1732143048083,3.25579,3071.5,3071.1,0.53272871]
[1732143049211,3.25587,3071.4,3071.1,0.53272871]
[1732143049412,3.25587,3071.4,3070.9,4.08414]
[1732143049619,6.51181,3071.4,3070.9,4.08414]
[1732143049932,3.25587,3071.4,3070.9,4.08414]
[1732143051883,3.25587,3071.4,3071.0,0.45907662]
[1732143053977,6.51178,3071.4,3071.0,0.45907662]
[1732143054180,3.25587,3071.4,3071.0,0.45907662]
[1732143056292,6.5118,3071.4,3071.0,0.45907662]
[1732143059528,3.25587,3071.4,3071.1,0.8162]
[1732143059735,3.25587,3071.4,3071.1,1.26936166]
[1732143060429,3.256,3071.3,3071.1,1.26936166]
[1732143060630,3.256,3071.3,3071.1,0.8162]
[1732143062341,6.51203,3071.3,3071.1,0.8162]
[1732143062996,3.256,3071.3,3071.1,0.8162]
[1732143063621,0.45013526,3071.6,3071.1,0.8162]
[1732143063932,3.25598,3071.3,3071.1,0.8162]
[1732143064289,6.51201,3071.3,3071.1,0.8162]
[1732143064500,3.25598,3071.3,3071.1,0.8162]
[1732143065232,6.512,3071.3,3071.1,0.8162]
[1732143065408,3.25605,3071.2,3070.8,0.7684]
[1732143065777,3.25616,3071.1,3070.8,1.55696019]
[1732143066224,6.51262,3071.0,3070.8,1.55696019]
[1732143066424,3.25637,3070.9,3070.8,0.7684]
[1732143066598,3.25653,3070.8,3070.6,0.7684]
[1732143066794,3.25696,3070.4,3070.1,0.27533934]
[1732143066996,3.25696,3070.4,3070.0,0.7684]
[1732143067293,0.48940222,3071.0,3070.0,0.7684]
[1732143067498,3.25566,3071.6,3071.0,0.7684]
[1732143067695,3.25554,3071.7,3071.5,0.7684]
[1732143067944,3.25574,3071.5,3071.2,0.7684]
[1732143068717,6.51157,3071.5,3071.2,0.7684]
[1732143068935,3.25574,3071.5,3071.2,0.7684]
[1732143069708,3.25558,3071.7,3071.2,0.7684]
[1732143069940,3.2557,3071.6,3071.2,0.7684]
[1732143072960,3.25558,3071.7,3071.2,0.7684]
[1732143073458,3.25565,3071.6,3071.2,0.7684]
[1732143081632,3.25558,3071.7,3071.2,0.7684]
[1732143082642,3.25564,3071.6,3071.2,0.7684]
[1732143085101,3.25542,3071.8,3071.2,0.7684]
[1732143085293,3.25559,3071.7,3071.2,1.49647]
[1732143085599,3.25559,3071.7,3071.2,0.7684]
[1732143085749,3.25559,3071.7,3071.2,4.02444]
[1732143087292,3.25566,3071.6,3071.2,0.7684]
[1732143087793,3.25566,3071.6,3071.2,1.17085]
[1732143088190,3.25566,3071.6,3071.2,2.5433219]
[1732143088499,3.25566,3071.6,3071.2,5.7993519]
[1732143088694,3.25542,3071.8,3071.2,5.7993519]
[1732143088874,3.25553,3071.7,3071.2,4.42688]
[1732143089190,3.25553,3071.7,3071.3,0.768298]
[1732143090095,3.2555,3071.8,3071.3,0.768298]
[1732143090294,3.25527,3072.0,3071.4,3.25578]
[1732143090596,3.25527,3072.0,3071.4,3.7753528]
[1732143091666,3.54634,3072.2,3071.6,0.7544]
[1732143091990,3.25521,3072.0,3071.6,0.7544]
[1732143092997,6.80143,3072.2,3071.6,0.7544]
[1732143093316,6.80143,3072.2,3071.6,1.53294128]
[1732143093604,6.80143,3072.2,3071.6,4.78856128]
[1732143094299,3.54634,3072.2,3071.6,4.78856128]
[1732143094896,3.25504,3072.2,3071.6,4.78856128]
[1732143095421,3.25504,3072.2,3071.7,3.73436613]
[1732143095565,3.25504,3072.2,3071.7,0.47885613]
[1732143095928,3.25504,3072.2,3071.6,0.7544]
[1732143095929,3.25518,3072.1,3071.6,0.7544]